[Event "-chT Youth Countries 2019"]
[Site "Wuerzburg"]
[Date "2019.10.03"]
[Round "3.8"]
[White "Voigt, Anastasia"]
[Black "Sereda, Yaroslava"]
[Result "0-1"]
[ECO "B35"]
[WhiteElo "1457"]
[BlackElo "1687"]
[Annotator "NA"]
[PlyCount "113"]
[EventDate "2019.10.02"]
[EventType "team-tourn"]
[EventRounds "7"]
[EventCountry "GER"]
[SourceTitle "playchess.com"]
[Source "ChessBase"]
[SourceQuality "1"]
[WhiteTeam "Sachsen-Anhalt"]
[BlackTeam "Nordrhein-Westfalen"]
[TimeControl "40/5400+30:1800+30"]

1. e4 {[%emt 0:00:00]} c5 {[%emt 0:00:00]} 2. Nf3 {[%emt 0:00:00]} Nc6 {[%emt 0:00:00]} 3. d4 {[%emt 0:00:00]} cxd4 {[%emt 0:00:00]} 4. Nxd4 {[%emt 0:00:00]} g6 {[%emt 0:00:02]} 5. Nc3 {[%emt 0:00:03]} Bg7 {[%emt 0:00:08]} 6. Be3 {[%emt 0:00:12]} Nf6 {[%emt 0:00:12]} 7. Bc4 {[%emt 0:00:15]} O-O {[%emt 0:00:43]} 8. Bb3 {[%emt 0:00:16]} d6 {[%emt 0:00:35]} 9. f3 {[%emt 0:01:00]} Nxd4 {[%emt 0:06:21]} 10. Bxd4 {[%emt 0:00:14]} Be6 {[%emt 0:06:24]} 11. Qd2 {[%emt 0:05:36]} a6 {[%emt 0:09:43]} 12. O-O-O {[%emt 0:03:23]} Bxb3 {[%emt 0:08:40]} 13. axb3 {[%emt 0:00:24]} Nd7 {[%emt 0:11:45]} 14. Bxg7 {[%emt 0:00:44]} Kxg7 {[%emt 0:00:10]} 15. h4 {[%emt 0:00:38]} h5 {[%emt 0:08:35]} 16. g4 {[%emt 0:00:37]} Rh8 {[%emt 0:03:26]} 17. Rdg1 {[%emt 0:01:35]} Ne5 {[%emt 0:11:15]} 18. Qf4 {[%emt 0:02:07]} Rc8 {[%emt 0:02:53]} 19. gxh5 {[%emt 0:12:29]} Rxh5 {[%emt 0:00:54]} 20. Rg5 {[%emt 0:03:28]} Qh8 {[%emt 0:02:59]} 21. Rgg1 {[%emt 0:05:34]} Qh6 {[%emt 0:03:20]} 22. Qxh6+ {[%emt 0:01:58]} Rxh6 {[%emt 0:00:14]} 23. Rh3 {[%emt 0:06:01]} Rch8 {[%emt 0:02:27]} 24. f4 {[%emt 0:03:04]} Nd7 {[%emt 0:01:02]} 25. Rgh1 {[%emt 0:01:41]} Nf6 {[%emt 0:03:09]} 26. Kd2 {[%emt 0:00:42]} Rh5 {[%emt 0:03:35]} 27. Ke3 {[%emt 0:02:19]} b5 {[%emt 0:02:12]} 28. b4 {[%emt 0:00:58]} e6 {[%emt 0:02:59]} 29. Kf3 {[%emt 0:05:04]} d5 {[%emt 0:01:34]} 30. e5 {[%emt 0:01:40]} Nd7 {[%emt 0:00:46]} 31. Ne2 {[%emt 0:01:01]} f6 {[%emt 0:01:28]} 32. exf6+ {[%emt 0:02:48]} Kxf6 {[%emt 0:00:26]} 33. Ng3 {[%emt 0:00:36]} R5h6 {[%emt 0:03:32]} 34. Kg4 {[%emt 0:03:26]} Kf7 {[%emt 0:01:45]} 35. Ra1 {[%emt 0:05:33]} Nf6+ {[%emt 0:00:31]} 36. Kf3 {[%emt 0:00:07]} Ra8 {[%emt 0:00:50]} 37. c3 {[%emt 0:01:49]} Rhh8 {[%emt 0:01:58]} 38. Rhh1 {[%emt 0:00:50]} Ra7 {[%emt 0:00:27]} 39. Ra5 {[%emt 0:00:42]} Nd7 {[%emt 0:00:56]} 40. Ne2 {[%emt 0:00:55]} e5 {[%emt 0:01:15]} 41. Kg3 {[%emt 0:31:09]} Nb8 {[%emt 0:11:56]} 42. Ra2 {[%emt 0:00:00]} e4 {[%emt 0:03:20]} 43. b3 {[%emt 0:00:00]} Rc7 {[%emt 0:00:58]} 44. Rd1 {[%emt 0:00:00]} Ke6 {[%emt 0:00:59]} 45. Kg4 {[%emt 0:00:00]} Rd8 {[%emt 0:03:36]} 46. Kg5 {[%emt 0:00:00]} Kf7 {[%emt 0:00:53]} 47. Rad2 {[%emt 0:00:00]} Rcd7 {[%emt 0:00:36]} 48. f5 {[%emt 0:00:00]} gxf5 {[%emt 0:03:32]} 49. Kxf5 {[%emt 0:00:00]} Rd6 {[%emt 0:01:51]} 50. h5 {[%emt 0:00:00]} Rf6+ {[%emt 0:04:57]} 51. Kg4 {[%emt 0:00:00]} Rg8+ {[%emt 0:00:36]} 52. Kh3 {[%emt 0:00:00]} Rf3+ {[%emt 0:00:36]} 53. Kh4 {[%emt 0:00:00]} Rf2 {[%emt 0:01:12]} 54. Rh1 {[%emt 0:00:00]} e3 {[%emt 0:00:46]} 55. Ra2 {[%emt 0:00:00]} Rgg2 {[%emt 0:00:28]} 56. Re1 {[%emt 0:01:57] normal} Nd7 {[%emt 0:01:02]} 57. h6 {[%emt 0:03:27] normal} 0-1

[Event "-chT Youth Countries 2019"]
[Site "Wuerzburg"]
[Date "2019.10.03"]
[Round "3.8"]
[White "Ulrich, Helena Irene"]
[Black "von Beckh, Frieda"]
[Result "1-0"]
[ECO "B38"]
[WhiteElo "1355"]
[BlackElo "1541"]
[Annotator "NA"]
[PlyCount "81"]
[EventDate "2019.10.02"]
[EventType "team-tourn"]
[EventRounds "7"]
[EventCountry "GER"]
[SourceTitle "playchess.com"]
[Source "ChessBase"]
[SourceQuality "1"]
[WhiteTeam "Thüringen"]
[BlackTeam "Hessen"]
[TimeControl "40/5400+30:1800+30"]

1. e4 {[%emt 0:00:00]} c5 {[%emt 0:00:00]} 2. Nf3 {[%emt 0:00:00]} Nc6 {[%emt 0:00:00]} 3. d4 {[%emt 0:00:00]} cxd4 {[%emt 0:00:00]} 4. Nxd4 {[%emt 0:00:00]} g6 {[%emt 0:00:02]} 5. c4 {[%emt 0:00:00]} Bg7 {[%emt 0:00:08]} 6. Be3 {[%emt 0:00:06]} Nf6 {[%emt 0:00:09]} 7. Nc3 {[%emt 0:00:09]} O-O {[%emt 0:00:19]} 8. Be2 {[%emt 0:00:13]} d6 {[%emt 0:00:34]} 9. O-O {[%emt 0:00:22]} Bd7 {[%emt 0:01:33]} 10. Qd2 {[%emt 0:01:01]} Ng4 {[%emt 0:03:31]} 11. Bxg4 {[%emt 0:05:36]} Bxg4 {[%emt 0:01:33]} 12. f3 {[%emt 0:05:29]} Bd7 {[%emt 0:01:09]} 13. Nd5 {[%emt 0:06:02]} e6 {[%emt 0:08:25]} 14. Nc3 {[%emt 0:00:58]} Ne5 {[%emt 0:03:41]} 15. b3 {[%emt 0:07:01]} Nc6 {[%emt 0:03:23]} 16. Rac1 {[%emt 0:06:31]} a6 {[%emt 0:11:17]} 17. Rfd1 {[%emt 0:02:49]} Rc8 {[%emt 0:04:44]} 18. Nxc6 {[%emt 0:14:34]} Rxc6 {[%emt 0:01:22]} 19. Bd4 {[%emt 0:03:06]} e5 {[%emt 0:01:41]} 20. Be3 {[%emt 0:01:14]} Qh4 {[%emt 0:05:06]} 21. Bg5 {[%emt 0:06:16]} Qh5 {[%emt 0:00:35]} 22. Ne2 {[%emt 0:04:45]} Bh6 {[%emt 0:04:18]} 23. Bxh6 {[%emt 0:00:46]} Qh4 {[%emt 0:00:29]} 24. Bg5 {[%emt 0:00:30]} Qh5 {[%emt 0:04:53]} 25. Ng3 {[%emt 0:00:10]} Qxg5 {[%emt 0:00:38]} 26. Qxg5 {[%emt 0:00:05]} f6 {[%emt 0:00:17]} 27. Qe3 {[%emt 0:02:52]} f5 {[%emt 0:00:37]} 28. exf5 {[%emt 0:00:26]} Bxf5 {[%emt 0:00:13]} 29. Nxf5 {[%emt 0:00:19]} Rxf5 {[%emt 0:00:10]} 30. Rd5 {[%emt 0:00:32]} Rf8 {[%emt 0:00:34]} 31. Rcd1 {[%emt 0:00:54]} Rf6 {[%emt 0:00:16]} 32. Qa7 {[%emt 0:03:00]} Rf7 {[%emt 0:00:45]} 33. Rxd6 {[%emt 0:00:57]} Rcc7 {[%emt 0:00:33]} 34. Qe3 {[%emt 0:01:14]} Rfe7 {[%emt 0:00:29]} 35. Qe4 {[%emt 0:02:00]} Kg7 {[%emt 0:00:29]} 36. R1d5 {[%emt 0:00:52]} Rc8 {[%emt 0:00:59]} 37. Rd7 {[%emt 0:00:18]} Rce8 {[%emt 0:00:43]} 38. Qxe5+ {[%emt 0:01:27]} Kg8 {[%emt 0:00:17]} 39. Rxe7 {[%emt 0:00:12]} Rxe7 {[%emt 0:00:07]} 40. Qxe7 {[%emt 0:00:06]} Kh8 {[%emt 0:00:07]} 41. Rd8# {[%emt 0:30:05] normal} 1-0

[Event "-chT Youth Countries 2019"]
[Site "Wuerzburg"]
[Date "2019.10.03"]
[Round "3.8"]
[White "Sens, Gerda"]
[Black "Richter, Johanna"]
[Result "1-0"]
[ECO "B07"]
[WhiteElo "1291"]
[BlackElo "942"]
[Annotator "NA"]
[PlyCount "101"]
[EventDate "2019.10.02"]
[EventType "team-tourn"]
[EventRounds "7"]
[EventCountry "GER"]
[SourceTitle "playchess.com"]
[Source "ChessBase"]
[SourceQuality "1"]
[WhiteTeam "Mecklenburg-Vorpommern"]
[BlackTeam "Rheinland-Pfalz"]
[TimeControl "40/5400+30:1800+30"]

1. e4 {[%emt 0:00:00]} d6 {[%emt 0:00:00]} 2. d4 {[%emt 0:00:00]} Nf6 {[%emt 0:00:00]} 3. Nc3 {[%emt 0:00:21]} g6 {[%emt 0:00:14]} 4. f3 {[%emt 0:00:23]} a6 {[%emt 0:00:17]} 5. Be3 {[%emt 0:00:14]} b5 {[%emt 0:00:19]} 6. Qd2 {[%emt 0:01:16]} Bb7 {[%emt 0:00:28]} 7. O-O-O {[%emt 0:00:36]} Nbd7 {[%emt 0:00:21]} 8. Nge2 {[%emt 0:01:19]} b4 {[%emt 0:01:43]} 9. Na4 {[%emt 0:01:22]} a5 {[%emt 0:00:59]} 10. b3 {[%emt 0:01:49]} Bc6 {[%emt 0:00:51]} 11. Nb2 {[%emt 0:00:42]} Qb8 {[%emt 0:01:37]} 12. a4 {[%emt 0:02:02]} bxa3 13. Nc4 Qb4 {[%emt 0:04:04]} 14. Qxb4 {[%emt 0:00:49]} axb4 {[%emt 0:00:05]} 15. Bd2 {[%emt 0:05:05]} a2 {[%emt 0:00:40]} 16. Kb2 {[%emt 0:00:18]} e5 {[%emt 0:02:00]} 17. Bxb4 {[%emt 0:01:05]} exd4 {[%emt 0:00:28]} 18. Nxd4 {[%emt 0:00:55]} Bb7 {[%emt 0:02:15]} 19. Na5 {[%emt 0:04:15]} c5 {[%emt 0:00:35]} 20. Nxb7 {[%emt 0:01:38]} cxb4 {[%emt 0:00:31]} 21. Bb5 {[%emt 0:01:49]} Ra7 {[%emt 0:00:42]} 22. Bc6 {[%emt 0:02:13]} Be7 {[%emt 0:02:29]} 23. Nb5 {[%emt 0:01:12]} Ra6 {[%emt 0:06:11]} 24. Nc7+ {[%emt 0:00:23]} Kf8 {[%emt 0:01:26]} 25. Nxa6 {[%emt 0:00:12]} Kg7 {[%emt 0:06:43]} 26. Nxb4 {[%emt 0:01:10]} Rc8 {[%emt 0:02:31]} 27. Nxd6 {[%emt 0:01:35]} Rb8 {[%emt 0:03:08]} 28. Nxa2 {[%emt 0:01:05]} Rb6 {[%emt 0:00:41]} 29. Bxd7 {[%emt 0:01:36]} Bxd6 {[%emt 0:00:27]} 30. Bh3 {[%emt 0:01:00]} Be5+ {[%emt 0:00:11]} 31. Nc3 {[%emt 0:01:12]} Rc6 {[%emt 0:00:48]} 32. Rd3 {[%emt 0:00:54]} Nh5 {[%emt 0:01:05]} 33. g3 {[%emt 0:00:28]} Nf6 {[%emt 0:03:17]} 34. Ra1 {[%emt 0:01:18]} Ne8 {[%emt 0:06:49]} 35. Bd7 {[%emt 0:00:24]} Bxc3+ {[%emt 0:00:38]} 36. Rxc3 {[%emt 0:00:29]} Rxc3 {[%emt 0:00:12]} 37. Kxc3 {[%emt 0:00:08]} Nc7 {[%emt 0:00:09]} 38. Ra7 {[%emt 0:00:31]} Nb5+ {[%emt 0:11:37]} 39. Bxb5 {[%emt 0:01:26]} Kf8 {[%emt 0:01:39]} 40. Bc6 {[%emt 0:04:21]} Kg7 {[%emt 0:01:27]} 41. b4 {[%emt 0:30:09]} Kh6 {[%emt 0:32:23]} 42. b5 {[%emt 0:00:09]} Kg7 {[%emt 0:01:42]} 43. b6 {[%emt 0:00:08]} Kh6 {[%emt 0:00:16]} 44. b7 {[%emt 0:00:08]} Kg7 {[%emt 0:02:43]} 45. b8=Q Kf6 46. Qf4+ {[%emt 0:01:27]} Kg7 {[%emt 0:03:47]} 47. Qxf7+ {[%emt 0:00:44]} Kh6 {[%emt 0:00:00]} 48. Qxh7+ {[%emt 0:00:16]} Kg5 {[%emt 0:02:36]} 49. h4+ {[%emt 0:00:15]} Kf6 {[%emt 0:00:48]} 50. Qf7+ {[%emt 0:01:00]} Ke5 {[%emt 0:00:53]} 51. Qe7# {normal Kd5} 1-0

[Event "-chT Youth Countries 2019"]
[Site "Wuerzburg"]
[Date "2019.10.04"]
[Round "4.1"]
[White "Roseneck, Jonas"]
[Black "Herbrig, Alexander"]
[Result "1-0"]
[ECO "B36"]
[WhiteElo "2402"]
[BlackElo "2295"]
[Annotator "NA"]
[PlyCount "43"]
[EventDate "2019.10.02"]
[EventType "team-tourn"]
[EventRounds "7"]
[EventCountry "GER"]
[SourceTitle "playchess.com"]
[Source "ChessBase"]
[SourceQuality "1"]
[WhiteTeam "Sachsen-Anhalt"]
[BlackTeam "Sachsen"]
[TimeControl "40/5400+30:1800+30"]

1. e4 {[%emt 0:00:00]} c5 {[%emt 0:00:00]} 2. Nf3 {[%emt 0:00:00]} Nc6 {[%emt 0:00:00]} 3. d4 {[%emt 0:00:00]} cxd4 {[%emt 0:00:00]} 4. Nxd4 {[%emt 0:00:00]} g6 {[%emt 0:00:00]} 5. c4 {[%emt 0:00:00]} Nf6 {[%emt 0:00:01]} 6. Nc3 {[%emt 0:00:03]} Nxd4 {[%emt 0:00:03]} 7. Qxd4 {[%emt 0:00:07]} d6 {[%emt 0:00:06]} 8. f3 {[%emt 0:01:04]} Bg7 {[%emt 0:00:10]} 9. Be3 {[%emt 0:00:04]} O-O {[%emt 0:00:14]} 10. Qd2 {[%emt 0:00:05]} Bd7 {[%emt 0:04:25]} 11. Be2 {[%emt 0:04:06]} Bc6 {[%emt 0:00:15]} 12. h4 {[%emt 0:05:25]} Qa5 {[%emt 0:03:46]} 13. g4 {[%emt 0:13:07]} h5 {[%emt 0:04:22]} 14. gxh5 {[%emt 0:10:07]} Nxh5 {[%emt 0:01:05]} 15. Rg1 {[%emt 0:00:13]} e5 {[%emt 0:24:27]} 16. O-O-O {[%emt 0:12:31]} Rfc8 {[%emt 0:10:33]} 17. Kb1 {[%emt 0:12:38]} a6 {[%emt 0:08:31]} 18. Rg5 {[%emt 0:04:05]} b5 {[%emt 0:03:41]} 19. Rxh5 {[%emt 0:07:03]} gxh5 {[%emt 0:00:45]} 20. Bh6 {[%emt 0:00:27]} Bf6 {[%emt 0:03:42] normal} 21. Nd5 {[%emt 0:02:02]} Qd8 {[%emt 0:01:40]} 22. Rg1+ {[%emt 0:01:40] normal} 1-0

[Event "-chT Youth Countries 2019"]
[Site "Wuerzburg"]
[Date "2019.10.04"]
[Round "4.1"]
[White "Polster, Christian"]
[Black "Browning, Alex"]
[Result "1-0"]
[ECO "B96"]
[WhiteElo "2279"]
[BlackElo "2291"]
[Annotator "NA"]
[PlyCount "96"]
[EventDate "2019.10.02"]
[EventType "team-tourn"]
[EventRounds "7"]
[EventCountry "GER"]
[SourceTitle "playchess.com"]
[Source "ChessBase"]
[SourceQuality "1"]
[WhiteTeam "Niedersachsen"]
[BlackTeam "Nordrhein-Westfalen"]
[TimeControl "40/5400+30:1800+30"]

1. e4 {[%emt 0:00:00]} c5 {[%emt 0:00:00]} 2. Nf3 {[%emt 0:00:00]} d6 {[%emt 0:00:00]} 3. d4 {[%emt 0:00:00]} cxd4 {[%emt 0:00:00]} 4. Nxd4 {[%emt 0:00:00]} Nf6 {[%emt 0:00:00]} 5. Nc3 {[%emt 0:00:00]} a6 {[%emt 0:00:00]} 6. Bg5 {[%emt 0:01:31]} e6 {[%emt 0:00:00]} 7. f4 {[%emt 0:06:33]} h6 {[%emt 0:00:02]} 8. Bh4 {[%emt 0:01:08]} Qb6 {[%emt 0:00:06]} 9. a3 {[%emt 0:00:24]} Be7 {[%emt 0:00:08]} 10. Bf2 {[%emt 0:00:38]} Qc7 {[%emt 0:00:04]} 11. Qf3 {[%emt 0:02:01]} Nbd7 {[%emt 0:01:07]} 12. O-O-O {[%emt 0:01:27]} b5 {[%emt 0:00:05]} 13. g4 {[%emt 0:02:18]} Bb7 {[%emt 0:00:29]} 14. Bg2 {[%emt 0:12:16]} Nc5 {[%emt 0:06:18]} 15. Rhe1 {[%emt 0:10:41]} O-O {[%emt 0:16:38]} 16. Qh3 {[%emt 0:23:00]} d5 {[%emt 0:05:34]} 17. exd5 {[%emt 0:13:11]} Qxf4+ {[%emt 0:07:52]} 18. Kb1 {[%emt 0:02:16]} Qxg4 {[%emt 0:05:17]} 19. Nf5 {[%emt 0:06:58]} Qxf5 {[%emt 0:21:37]} 20. Qxf5 {[%emt 0:01:17]} exf5 {[%emt 0:00:01]} 21. Rxe7 {[%emt 0:00:31]} Ncd7 {[%emt 0:01:40]} 22. Bh3 {[%emt 0:07:11]} g6 {[%emt 0:15:22]} 23. Bd4 {[%emt 0:01:29]} Rab8 {[%emt 0:02:14]} 24. Bxf5 {[%emt 0:01:15]} Rfd8 {[%emt 0:05:23]} 25. Bxd7 {[%emt 0:00:58]} Nxd7 {[%emt 0:00:11]} 26. Rf1 {[%emt 0:00:07]} f6 {[%emt 0:02:58]} 27. Bxf6 {[%emt 0:04:17]} Nxf6 {[%emt 0:00:12]} 28. Rxf6 {[%emt 0:00:07]} Bxd5 {[%emt 0:00:06]} 29. Rxg6+ {[%emt 0:00:27]} Kf8 {[%emt 0:00:04]} 30. Rh7 {[%emt 0:02:03]} Bg8 {[%emt 0:01:01]} 31. Rf6+ {[%emt 0:00:31]} Ke8 {[%emt 0:00:05]} 32. Rg7 {[%emt 0:00:18]} Bd5 {[%emt 0:00:46]} 33. Rxh6 {[%emt 0:00:17]} Kf8 {[%emt 0:00:09]} 34. Rc7 {[%emt 0:00:50]} Kg8 {[%emt 0:00:29]} 35. Rxa6 {[%emt 0:00:23]} Bf7 {[%emt 0:00:11]} 36. b3 {[%emt 0:00:39]} b4 {[%emt 0:00:16]} 37. axb4 {[%emt 0:00:38]} Rxb4 {[%emt 0:00:24]} 38. Ra4 {[%emt 0:00:33]} Rb6 {[%emt 0:00:45]} 39. Kb2 {[%emt 0:00:34]} Rd2 {[%emt 0:00:43]} 40. Ra8+ {[%emt 0:00:36]} Kg7 {[%emt 0:00:05]} 41. Raa7 {[%emt 0:08:32]} Rf2 {[%emt 0:01:16]} 42. Rab7 {[%emt 0:01:22]} Rxb7 {[%emt 0:00:40]} 43. Rxb7 {[%emt 0:00:05]} Rxh2 {[%emt 0:00:04]} 44. Nb5 {[%emt 0:05:19]} Kf6 {[%emt 0:00:31]} 45. Nd4 {[%emt 0:00:35]} Bd5 {[%emt 0:00:51]} 46. Rb5 {[%emt 0:00:43]} Be4 {[%emt 0:00:15]} 47. b4 {[%emt 0:00:52]} Rh3 {[%emt 0:02:15]} 48. Rc5 {[%emt 0:01:32]} Bh1 {[%emt 0:00:56] normal} 1-0

[Event "-chT Youth Countries 2019"]
[Site "Wuerzburg"]
[Date "2019.10.04"]
[Round "4.1"]
[White "Vuckovic, Zarko"]
[Black "Muckle, Julius"]
[Result "1-0"]
[ECO "D10"]
[WhiteElo "2253"]
[BlackElo "2398"]
[Annotator "NA"]
[PlyCount "85"]
[EventDate "2019.10.02"]
[EventType "team-tourn"]
[EventRounds "7"]
[EventCountry "GER"]
[SourceTitle "playchess.com"]
[Source "ChessBase"]
[SourceQuality "1"]
[WhiteTeam "Bayern 1"]
[BlackTeam "Rheinland-Pfalz"]
[TimeControl "40/5400+30:1800+30"]

1. d4 {[%emt 0:00:00]} d5 {[%emt 0:00:00]} 2. c4 {[%emt 0:00:00]} c6 {[%emt 0:00:00]} 3. cxd5 {[%emt 0:00:00]} cxd5 {[%emt 0:00:00]} 4. Bg5 {[%emt 0:00:00]} h6 {[%emt 0:04:33]} 5. Bh4 {[%emt 0:00:36]} Qb6 {[%emt 0:04:55]} 6. Nc3 {[%emt 0:00:05]} e6 {[%emt 0:10:06]} 7. Qd2 {[%emt 0:00:23]} Nc6 {[%emt 0:02:38]} 8. e3 {[%emt 0:01:09]} Bd7 {[%emt 0:02:40]} 9. Bd3 {[%emt 0:01:37]} Rc8 {[%emt 0:00:55]} 10. Nf3 {[%emt 0:01:03]} Nf6 {[%emt 0:00:21]} 11. O-O {[%emt 0:07:45]} Bb4 {[%emt 0:02:16]} 12. Bxf6 {[%emt 0:01:55]} gxf6 {[%emt 0:00:04]} 13. Rac1 {[%emt 0:02:39]} Na5 {[%emt 0:14:48]} 14. e4 {[%emt 0:10:30]} dxe4 {[%emt 0:12:57]} 15. Bxe4 {[%emt 0:00:12]} Nc4 {[%emt 0:00:13]} 16. Qf4 {[%emt 0:04:12]} f5 {[%emt 0:03:56]} 17. Bb1 {[%emt 0:19:09]} Qd6 {[%emt 0:11:30]} 18. Qh4 {[%emt 0:06:07]} Qe7 {[%emt 0:03:58]} 19. Qh5 {[%emt 0:02:19]} Nxb2 {[%emt 0:02:54]} 20. Ne2 {[%emt 0:03:26]} Bd6 {[%emt 0:11:01]} 21. d5 {[%emt 0:02:47]} Kd8 {[%emt 0:01:14]} 22. Ned4 {[%emt 0:12:18]} Qf6 {[%emt 0:01:32]} 23. Rfe1 {[%emt 0:09:20]} Na4 {[%emt 0:02:12]} 24. Rxc8+ {[%emt 0:01:00]} Kxc8 {[%emt 0:00:11]} 25. dxe6 {[%emt 0:00:26]} fxe6 {[%emt 0:00:32]} 26. Nxe6 {[%emt 0:00:23]} Re8 {[%emt 0:03:01]} 27. Bxf5 {[%emt 0:00:08]} Nc5 {[%emt 0:01:15]} 28. Rc1 {[%emt 0:02:02]} Rxe6 {[%emt 0:02:33]} 29. Bxe6 {[%emt 0:00:09]} Bxe6 {[%emt 0:01:21]} 30. Rxc5+ {[%emt 0:00:16]} Bxc5 {[%emt 0:00:02]} 31. Qxc5+ {[%emt 0:00:04]} Kd7 {[%emt 0:00:03]} 32. Ne5+ {[%emt 0:01:18]} Ke8 {[%emt 0:00:39]} 33. Qd6 {[%emt 0:04:33]} Qe7 {[%emt 0:00:29]} 34. Qd4 {[%emt 0:02:28]} Bxa2 {[%emt 0:00:44]} 35. h3 {[%emt 0:00:20]} Qe6 {[%emt 0:01:10]} 36. Qa4+ {[%emt 0:03:00]} Kd8 {[%emt 0:00:26]} 37. f4 {[%emt 0:00:15]} a6 {[%emt 0:00:41]} 38. Qe4 {[%emt 0:02:48]} Kc8 {[%emt 0:00:37]} 39. f5 {[%emt 0:00:56]} Qd5 {[%emt 0:00:01]} 40. Qf4 {[%emt 0:00:08]} Qg8 {[%emt 0:00:59]} 41. f6 {[%emt 0:02:34]} Bd5 {[%emt 0:02:32]} 42. g4 {[%emt 0:01:41] normal} Qf8 {[%emt 0:09:01]} 43. Qf5+ {[%emt 0:00:39] normal} 1-0

[Event "-chT Youth Countries 2019"]
[Site "Wuerzburg"]
[Date "2019.10.04"]
[Round "4.1"]
[White "Nguyen, Huy Dat"]
[Black "Weihrauch, Jakob"]
[Result "1/2-1/2"]
[ECO "B50"]
[WhiteElo "2181"]
[BlackElo "2167"]
[Annotator "NA"]
[PlyCount "41"]
[EventDate "2019.10.02"]
[EventType "team-tourn"]
[EventRounds "7"]
[EventCountry "GER"]
[SourceTitle "playchess.com"]
[Source "ChessBase"]
[SourceQuality "1"]
[WhiteTeam "Thüringen"]
[BlackTeam "Hamburg/Schleswig-Holstein"]
[TimeControl "40/5400+30:1800+30"]

1. e4 {[%emt 0:00:00]} c5 {[%emt 0:00:00]} 2. Nf3 {[%emt 0:00:00]} d6 {[%emt 0:00:00]} 3. Bc4 {[%emt 0:00:00]} Nf6 {[%emt 0:00:13]} 4. d3 {[%emt 0:00:28]} Nc6 {[%emt 0:00:26]} 5. O-O {[%emt 0:00:40]} g6 {[%emt 0:00:40]} 6. c3 {[%emt 0:01:12]} Bg7 {[%emt 0:00:14]} 7. h3 {[%emt 0:01:11]} O-O {[%emt 0:01:06]} 8. Bb3 {[%emt 0:00:16]} e5 {[%emt 0:01:54]} 9. Bg5 {[%emt 0:02:48]} h6 {[%emt 0:00:46]} 10. Be3 {[%emt 0:05:41]} b6 {[%emt 0:03:47]} 11. Ba4 {[%emt 0:12:01]} Bb7 {[%emt 0:03:06]} 12. Bxc6 {[%emt 0:00:08]} Bxc6 {[%emt 0:00:07]} 13. c4 {[%emt 0:00:02]} Ne8 {[%emt 0:05:31]} 14. Nc3 {[%emt 0:03:15]} f5 {[%emt 0:02:45]} 15. Nd5 {[%emt 0:00:57]} f4 {[%emt 0:07:21]} 16. Bd2 {[%emt 0:00:03]} Bxd5 {[%emt 0:05:24]} 17. cxd5 {[%emt 0:00:13]} g5 {[%emt 0:04:30]} 18. b4 {[%emt 0:05:29]} Nf6 {[%emt 0:03:32]} 19. bxc5 {[%emt 0:02:11]} bxc5 {[%emt 0:00:07]} 20. Rb1 {[%emt 0:00:19]} Qe8 {[%emt 0:03:56]} 21. Rb7 {[%emt 0:01:22] normal} 1/2-1/2

[Event "-chT Youth Countries 2019"]
[Site "Wuerzburg"]
[Date "2019.10.04"]
[Round "4.1"]
[White "Fromm, Marius"]
[Black "Degenhard, Simon"]
[Result "0-1"]
[ECO "A06"]
[WhiteElo "2124"]
[BlackElo "2084"]
[Annotator "ChessBase"]
[PlyCount "60"]
[EventDate "2019.10.02"]
[EventType "team-tourn"]
[EventRounds "7"]
[EventCountry "GER"]
[SourceTitle "playchess.com"]
[Source "ChessBase"]
[SourceQuality "1"]
[WhiteTeam "Mecklenburg-Vorpommern"]
[BlackTeam "Württemberg"]
[TimeControl "40/5400+30:1800+30"]

1. Nf3 {[%emt 0:00:00]} d5 {[%emt 0:00:00]} 2. c4 {[%emt 0:00:00]} c6 {[%emt 0:00:00]} 3. g3 {[%emt 0:00:00]} Nf6 {[%emt 0:00:00]} 4. Bg2 {[%emt 0:00:05]} dxc4 {[%emt 0:00:08]} 5. O-O {[%emt 0:00:09]} Nbd7 {[%emt 0:00:17]} 6. Na3 {[%emt 0:00:50]} Nb6 {[%emt 0:00:25]} 7. Qc2 {[%emt 0:00:04]} Be6 {[%emt 0:00:26]} 8. Ng5 {[%emt 0:07:39]} Bg4 {[%emt 0:01:33]} 9. Nxc4 {[%emt 0:11:47]} Bxe2 {[%emt 0:00:57]} 10. Ne5 {[%emt 0:00:04]} Bh5 {[%emt 0:00:36]} 11. Re1 {[%emt 0:01:06]} h6 {[%emt 0:04:12]} 12. Nh3 {[%emt 0:30:19]} Nfd7 {[%emt 0:14:43]} 13. Nf4 {[%emt 0:05:18]} Nxe5 {[%emt 0:01:07]} 14. Rxe5 {[%emt 0:00:12]} Bg4 {[%emt 0:01:52]} 15. Ng6 {[%emt 0:04:54]} Qd6 {[%emt 0:03:43]} 16. Nxh8 {[%emt 0:07:27]} Qxe5 {[%emt 0:00:55]} 17. Be4 {[%emt 0:02:17]} Be6 {[%emt 0:10:01]} 18. d3 {[%emt 0:03:13]} g5 {[%emt 0:01:29]} 19. Be3 {[%emt 0:01:07]} Nd5 {[%emt 0:02:09]} 20. Qb3 {[%emt 0:02:41]} Nb6 {[%emt 0:13:24]} 21. Qa3 {[%emt 0:02:23]} Bg7 {[%emt 0:03:19]} 22. Ng6 {[%emt 0:02:48]} fxg6 {[%emt 0:03:51]} 23. Bxg6+ {[%emt 0:00:13]} Kf8 {[%emt 0:01:40]} 24. Bxb6 {[%emt 0:00:34]} Qxb2 {[%emt 0:00:31]} 25. Qxb2 {[%emt 0:00:10]} Bxb2 {[%emt 0:00:06]} 26. Rb1 {[%emt 0:01:32]} axb6 {[%emt 0:00:23]} 27. Rxb2 {[%emt 0:00:01]} b5 {[%emt 0:00:27]} 28. Kf1 {[%emt 0:01:22]} Rxa2 {[%emt 0:00:51]} 29. Rxa2 {[%emt 0:00:17]} Bxa2 {[%emt 0:00:03]} 30. Ke2 {[%emt 0:01:42]} Kg7 {[%emt 0:01:39] normal} 0-1